[Event "Titled Tuesday Blitz August 08 Late 2023"]
[White "Manon-og, Ramon Jr."]
[Black "Veiga, Jose Francisco R P Neves"]
[WhiteFideId "5200776"]
[BlackFideId "1930087"]
[WhiteElo "2317"]
[BlackElo "2562"]
[Result "0-1"]
[Round "5"]
[TimeControl "180+1"]
[Date "2023.08.08"]
[WhiteClock "0:01:19"]
[BlackClock "0:01:38"]
[Board "133"]

1. e4 {[%clk 0:03:00]}  e5 {[%clk 0:02:45]} 2. Nf3 {[%clk 0:03:00]}  Nc6 {[%clk 0:02:45]} 3. Bc4 {[%clk 0:03:01]}  Bc5 {[%clk 0:02:45]} 4. c3 {[%clk 0:03:01]}  Nf6 {[%clk 0:02:46]} 5. d4 {[%clk 0:03:01]}  exd4 {[%clk 0:02:46]} 6. e5 {[%clk 0:03:02]}  d5 {[%clk 0:02:45]} 7. Bb5 {[%clk 0:02:58]}  Ne4 {[%clk 0:02:43]} 8. cxd4 {[%clk 0:02:57]}  Bb6 {[%clk 0:02:42]} 9. Nc3 {[%clk 0:02:55]}  O-O {[%clk 0:02:42]} 10. h3 {[%clk 0:02:51]}  f6 {[%clk 0:02:39]} 11. O-O {[%clk 0:02:46]}  fxe5 {[%clk 0:02:39]} 12. Bxc6 {[%clk 0:02:46]}  bxc6 {[%clk 0:02:37]} 13. Nxe5 {[%clk 0:02:46]}  Ba6 {[%clk 0:02:37]} 14. Nxe4 {[%clk 0:02:34]}  dxe4 {[%clk 0:02:12]} 15. Nxc6 {[%clk 0:02:04]}  Qf6 {[%clk 0:01:54]} 16. Ne5 {[%clk 0:01:37]}  Bxf1 {[%clk 0:01:48]} 17. Qxf1 {[%clk 0:01:38]}  Bxd4 {[%clk 0:01:45]} 18. Nd7 {[%clk 0:01:35]}  Qxf2+ {[%clk 0:01:41]} 19. Qxf2 {[%clk 0:01:32]}  Rxf2 {[%clk 0:01:42]} 20. Kh1 {[%clk 0:01:19]}  Rd8 {[%clk 0:01:38]} 0-1


[Site "https://www.chess.com"]

[Event "Titled Tuesday Blitz August 08 Late 2023"]
[White "Bochnicka, Vladimir"]
[Black "AndresDelgado77"]
[WhiteFideId "14943450"]
[WhiteElo "2488"]
[BlackElo "2315"]
[Result "1-0"]
[Round "5"]
[TimeControl "180+1"]
[Date "2023.08.08"]
[WhiteClock "0:00:40"]
[BlackClock "0:00:01"]
[Board "135"]

1. e4 {[%clk 0:03:00]}  e6 {[%clk 0:02:55]} 2. d4 {[%clk 0:03:00]}  d5 {[%clk 0:02:45]} 3. e5 {[%clk 0:03:00]}  c5 {[%clk 0:02:39]} 4. c3 {[%clk 0:03:01]}  Bd7 {[%clk 0:02:39]} 5. Nf3 {[%clk 0:03:01]}  Nc6 {[%clk 0:02:38]} 6. Bd3 {[%clk 0:03:01]}  Qb6 {[%clk 0:02:17]} 7. O-O {[%clk 0:03:00]}  cxd4 {[%clk 0:02:12]} 8. h4 {[%clk 0:02:58]}  Rc8 {[%clk 0:02:01]} 9. Re1 {[%clk 0:02:54]}  a5 {[%clk 0:01:52]} 10. b3 {[%clk 0:02:50]}  dxc3 {[%clk 0:01:27]} 11. Nxc3 {[%clk 0:02:48]}  Bb4 {[%clk 0:01:25]} 12. Bd2 {[%clk 0:02:33]}  Nd4 {[%clk 0:01:11]} 13. Rc1 {[%clk 0:02:11]}  Nxf3+ {[%clk 0:01:02]} 14. Qxf3 {[%clk 0:02:10]}  Ne7 {[%clk 0:01:00]} 15. Qg4 {[%clk 0:02:03]}  O-O {[%clk 0:00:54]} 16. h5 {[%clk 0:01:56]}  Nf5 {[%clk 0:00:49]} 17. h6 {[%clk 0:01:44]}  Qd4 {[%clk 0:00:47]} 18. Bxf5 {[%clk 0:01:43]}  Qxg4 {[%clk 0:00:44]} 19. Bxg4 {[%clk 0:01:44]}  d4 {[%clk 0:00:41]} 20. Ne4 {[%clk 0:01:42]}  Bc6 {[%clk 0:00:39]} 21. hxg7 {[%clk 0:01:41]}  Kxg7 {[%clk 0:00:38]} 22. Bxb4 {[%clk 0:01:40]}  axb4 {[%clk 0:00:38]} 23. Nd6 {[%clk 0:01:40]}  Ra8 {[%clk 0:00:37]} 24. Rc2 {[%clk 0:01:36]}  Ra5 {[%clk 0:00:34]} 25. Rd2 {[%clk 0:01:34]}  Rfa8 {[%clk 0:00:34]} 26. Rxd4 {[%clk 0:01:34]}  Rxa2 {[%clk 0:00:32]} 27. Rf4 {[%clk 0:01:33]}  Rg8 {[%clk 0:00:31]} 28. Rxf7+ {[%clk 0:01:18]}  Kh6 {[%clk 0:00:25]} 29. Bf3 {[%clk 0:01:10]}  Rb2 {[%clk 0:00:18]} 30. Bxc6 {[%clk 0:01:08]}  bxc6 {[%clk 0:00:18]} 31. Re3 {[%clk 0:01:07]}  Rb1+ {[%clk 0:00:16]} 32. Kh2 {[%clk 0:01:07]}  Rg5 {[%clk 0:00:17]} 33. Rh3+ {[%clk 0:01:03]}  Kg6 {[%clk 0:00:17]} 34. Rf6+ {[%clk 0:00:54]}  Kg7 {[%clk 0:00:16]} 35. Ne8+ {[%clk 0:00:52]}  Kg8 {[%clk 0:00:16]} 36. Rff3 {[%clk 0:00:50]}  h5 {[%clk 0:00:12]} 37. Nf6+ {[%clk 0:00:47]}  Kg7 {[%clk 0:00:09]} 38. Nxh5+ {[%clk 0:00:48]}  Kg6 {[%clk 0:00:10]} 39. Nf4+ {[%clk 0:00:48]}  Kf5 {[%clk 0:00:10]} 40. Nd3+ {[%clk 0:00:42]}  Ke4 {[%clk 0:00:09]} 41. Rh4+ {[%clk 0:00:42]}  Kd5 {[%clk 0:00:09]} 42. Rf7 {[%clk 0:00:40]}  c5 {[%clk 0:00:05]} 43. Rc4 {[%clk 0:00:41]}  Rxe5 {[%clk 0:00:02]} 44. Rd7+ {[%clk 0:00:40]}  Kc6 {[%clk 0:00:01]} 45. Nxe5+ {[%clk 0:00:41]}  Kb5 {[%clk 0:00:01]} 46. Rb7+ {[%clk 0:00:40]} 1-0


[Site "https://www.chess.com"]

[Event "Titled Tuesday Blitz August 08 Late 2023"]
[White "Cooper, Aaron"]
[Black "Arnold, Ken"]
[WhiteFideId "2634945"]
[BlackFideId "2056836"]
[WhiteElo "2296"]
[BlackElo "2454"]
[Result "0-1"]
[Round "5"]
[TimeControl "180+1"]
[Date "2023.08.08"]
[WhiteClock "0:00:37"]
[BlackClock "0:01:11"]
[Board "139"]

1. e4 {[%clk 0:03:00]}  c6 {[%clk 0:02:40]} 2. d4 {[%clk 0:02:59]}  d5 {[%clk 0:02:39]} 3. exd5 {[%clk 0:03:00]}  cxd5 {[%clk 0:02:39]} 4. Bd3 {[%clk 0:03:01]}  Nf6 {[%clk 0:02:39]} 5. c3 {[%clk 0:03:01]}  Nc6 {[%clk 0:02:39]} 6. Bf4 {[%clk 0:03:01]}  Bg4 {[%clk 0:02:36]} 7. Qb3 {[%clk 0:03:01]}  Qb6 {[%clk 0:02:34]} 8. Qxb6 {[%clk 0:03:00]}  axb6 {[%clk 0:02:33]} 9. Nd2 {[%clk 0:02:57]}  e6 {[%clk 0:02:33]} 10. Ngf3 {[%clk 0:02:48]}  Bxf3 {[%clk 0:02:28]} 11. Nxf3 {[%clk 0:02:47]}  Be7 {[%clk 0:02:28]} 12. h3 {[%clk 0:02:43]}  O-O {[%clk 0:02:27]} 13. g4 {[%clk 0:02:41]}  Rfc8 {[%clk 0:02:23]} 14. Ke2 {[%clk 0:02:34]}  Nd7 {[%clk 0:02:17]} 15. g5 {[%clk 0:02:25]}  Na5 {[%clk 0:02:13]} 16. a3 {[%clk 0:02:17]}  Nc4 {[%clk 0:02:10]} 17. Rab1 {[%clk 0:02:17]}  b5 {[%clk 0:02:09]} 18. h4 {[%clk 0:02:16]}  Ndb6 {[%clk 0:02:06]} 19. Kd1 {[%clk 0:02:14]}  Na4 {[%clk 0:01:43]} 20. Kc2 {[%clk 0:01:56]}  Ncxb2 {[%clk 0:01:34]} 21. Rxb2 {[%clk 0:01:43]}  Rxc3+ {[%clk 0:01:33]} 22. Kd2 {[%clk 0:01:30]}  Rxd3+ {[%clk 0:01:32]} 23. Kxd3 {[%clk 0:01:31]}  Nxb2+ {[%clk 0:01:32]} 24. Kc2 {[%clk 0:01:31]}  Nc4 {[%clk 0:01:30]} 25. Ne5 {[%clk 0:01:13]}  Rxa3 {[%clk 0:01:22]} 26. Nd3 {[%clk 0:00:48]}  b4 {[%clk 0:01:13]} 27. Rb1 {[%clk 0:00:37]}  Rc3+ {[%clk 0:01:11]} 0-1


[Site "https://www.chess.com"]

[Event "Titled Tuesday Blitz August 08 Late 2023"]
[White "Fernandez Madrid, Carlos"]
[Black "Omariev, Maksim"]
[WhiteFideId "2206030"]
[BlackFideId "4193423"]
[WhiteElo "2293"]
[BlackElo "2448"]
[Result "0-1"]
[Round "5"]
[TimeControl "180+1"]
[Date "2023.08.08"]
[WhiteClock "0:01:15"]
[BlackClock "0:00:11"]
[Board "140"]

1. c4 {[%clk 0:03:00]}  e5 {[%clk 0:02:55]} 2. Nc3 {[%clk 0:02:59]}  Nc6 {[%clk 0:02:54]} 3. g3 {[%clk 0:02:59]}  Nf6 {[%clk 0:02:54]} 4. Bg2 {[%clk 0:03:00]}  Bc5 {[%clk 0:02:55]} 5. e3 {[%clk 0:02:59]}  d6 {[%clk 0:02:55]} 6. Nge2 {[%clk 0:02:59]}  O-O {[%clk 0:02:53]} 7. O-O {[%clk 0:02:59]}  a6 {[%clk 0:02:42]} 8. d4 {[%clk 0:02:59]}  Ba7 {[%clk 0:02:43]} 9. d5 {[%clk 0:02:57]}  Ne7 {[%clk 0:02:42]} 10. b3 {[%clk 0:02:57]}  h5 {[%clk 0:02:28]} 11. e4 {[%clk 0:02:53]}  h4 {[%clk 0:02:23]} 12. Bg5 {[%clk 0:02:53]}  hxg3 {[%clk 0:02:00]} 13. Nxg3 {[%clk 0:02:52]}  Nh7 {[%clk 0:01:56]} 14. Be3 {[%clk 0:02:46]}  Ng6 {[%clk 0:01:51]} 15. Nf5 {[%clk 0:02:44]}  Qf6 {[%clk 0:00:59]} 16. Bxa7 {[%clk 0:02:41]}  Rxa7 {[%clk 0:00:58]} 17. f4 {[%clk 0:02:41]}  Nxf4 {[%clk 0:00:53]} 18. Ne2 {[%clk 0:02:30]}  g5 {[%clk 0:00:33]} 19. Neg3 {[%clk 0:02:22]}  Kh8 {[%clk 0:00:15]} 20. Rxf4 {[%clk 0:02:12]}  exf4 {[%clk 0:00:14]} 21. Nh5 {[%clk 0:02:12]}  Qe5 {[%clk 0:00:13]} 22. Nd4 {[%clk 0:01:49]}  Bg4 {[%clk 0:00:06]} 23. Bf3 {[%clk 0:01:46]}  Bxf3 {[%clk 0:00:02]} 24. Nxf3 {[%clk 0:01:46]}  Qxe4 {[%clk 0:00:02]} 25. Qf1 {[%clk 0:01:41]}  Raa8 {[%clk 0:00:01]} 26. Re1 {[%clk 0:01:39]}  Qg6 {[%clk 0:00:02]} 27. Qh3 {[%clk 0:01:38]}  Rae8 {[%clk 0:00:02]} 28. Rf1 {[%clk 0:01:33]}  g4 {[%clk 0:00:02]} 29. Nxf4 {[%clk 0:01:28]}  gxh3+ {[%clk 0:00:03]} 30. Nxg6+ {[%clk 0:01:29]}  fxg6 {[%clk 0:00:04]} 31. Kf2 {[%clk 0:01:24]}  Rxf3+ {[%clk 0:00:03]} 32. Kxf3 {[%clk 0:01:23]}  Rf8+ {[%clk 0:00:03]} 33. Ke2 {[%clk 0:01:24]}  Rxf1 {[%clk 0:00:04]} 34. Kxf1 {[%clk 0:01:24]}  g5 {[%clk 0:00:04]} 35. Kf2 {[%clk 0:01:25]}  g4 {[%clk 0:00:05]} 36. Kg3 {[%clk 0:01:25]}  Nf6 {[%clk 0:00:06]} 37. Kf4 {[%clk 0:01:25]}  Kg7 {[%clk 0:00:06]} 38. b4 {[%clk 0:01:24]}  b6 {[%clk 0:00:06]} 39. Kg3 {[%clk 0:01:24]}  Kg6 {[%clk 0:00:06]} 40. Kf4 {[%clk 0:01:24]}  Kh5 {[%clk 0:00:05]} 41. a4 {[%clk 0:01:24]}  a5 {[%clk 0:00:05]} 42. bxa5 {[%clk 0:01:21]}  bxa5 {[%clk 0:00:06]} 43. Kf5 {[%clk 0:01:21]}  g3 {[%clk 0:00:06]} 44. hxg3 {[%clk 0:01:20]}  Ng4 {[%clk 0:00:07]} 45. Ke6 {[%clk 0:01:19]}  h2 {[%clk 0:00:07]} 46. Kd7 {[%clk 0:01:20]}  h1=Q {[%clk 0:00:08]} 47. Kxc7 {[%clk 0:01:20]}  Qg1 {[%clk 0:00:07]} 48. Kxd6 {[%clk 0:01:19]}  Qxg3+ {[%clk 0:00:08]} 49. Kc6 {[%clk 0:01:19]}  Qa3 {[%clk 0:00:09]} 50. d6 {[%clk 0:01:19]}  Ne5+ {[%clk 0:00:09]} 51. Kc7 {[%clk 0:01:18]}  Nxc4 {[%clk 0:00:09]} 52. d7 {[%clk 0:01:18]}  Qd6+ {[%clk 0:00:10]} 53. Kc8 {[%clk 0:01:18]}  Nb6+ {[%clk 0:00:10]} 54. Kb7 {[%clk 0:01:17]}  Nxd7 {[%clk 0:00:11]} 55. Ka7 {[%clk 0:01:16]}  Nc5 {[%clk 0:00:10]} 56. Ka8 {[%clk 0:01:15]}  Qd7 {[%clk 0:00:10]} 57. Kb8 {[%clk 0:01:15]}  Qb7# {[%clk 0:00:11]} 0-1


[Site "https://www.chess.com"]

[Event "Titled Tuesday Blitz August 08 Late 2023"]
[White "Steindl, Johannes"]
[Black "KorolDimitriy75"]
[WhiteFideId "1643266"]
[WhiteElo "2276"]
[BlackElo "2400"]
[Result "0-1"]
[Round "5"]
[TimeControl "180+1"]
[Date "2023.08.08"]
[WhiteClock "0:00:00"]
[BlackClock "0:00:05"]
[Board "142"]

1. e4 {[%clk 0:02:28]}  c5 {[%clk 0:03:00]} 2. c3 {[%clk 0:02:27]}  d5 {[%clk 0:02:59]} 3. exd5 {[%clk 0:02:27]}  Qxd5 {[%clk 0:03:00]} 4. Nf3 {[%clk 0:02:25]}  Nc6 {[%clk 0:02:59]} 5. Na3 {[%clk 0:02:13]}  Nf6 {[%clk 0:02:54]} 6. d4 {[%clk 0:02:10]}  cxd4 {[%clk 0:02:53]} 7. Nb5 {[%clk 0:02:08]}  Qd8 {[%clk 0:02:51]} 8. Nbxd4 {[%clk 0:01:58]}  Nxd4 {[%clk 0:02:47]} 9. Nxd4 {[%clk 0:01:30]}  e5 {[%clk 0:01:33]} 10. Bb5+ {[%clk 0:01:29]}  Bd7 {[%clk 0:01:32]} 11. Qe2 {[%clk 0:01:28]}  Bd6 {[%clk 0:01:30]} 12. Nf5 {[%clk 0:01:24]}  Bxb5 {[%clk 0:01:04]} 13. Qxb5+ {[%clk 0:01:21]}  Kf8 {[%clk 0:01:03]} 14. O-O {[%clk 0:01:05]}  Ne8 {[%clk 0:00:19]} 15. Rd1 {[%clk 0:00:50]}  Qc7 {[%clk 0:00:18]} 16. Be3 {[%clk 0:00:42]}  a6 {[%clk 0:00:16]} 17. Qd5 {[%clk 0:00:31]}  Rd8 {[%clk 0:00:14]} 18. Qf3 {[%clk 0:00:15]}  f6 {[%clk 0:00:13]} 19. Rd2 {[%clk 0:00:14]}  Be7 {[%clk 0:00:11]} 20. Rad1 {[%clk 0:00:12]}  Rxd2 {[%clk 0:00:11]} 21. Rxd2 {[%clk 0:00:13]}  Qc6 {[%clk 0:00:11]} 22. Qd1 {[%clk 0:00:11]}  Kf7 {[%clk 0:00:10]} 23. Qb3+ {[%clk 0:00:10]}  Qe6 {[%clk 0:00:09]} 24. Nxe7 {[%clk 0:00:07]}  Qxb3 {[%clk 0:00:08]} 25. axb3 {[%clk 0:00:08]}  Kxe7 {[%clk 0:00:09]} 26. Bc5+ {[%clk 0:00:08]}  Ke6 {[%clk 0:00:09]} 27. Kf1 {[%clk 0:00:04]}  g5 {[%clk 0:00:09]} 28. f3 {[%clk 0:00:04]}  Rg8 {[%clk 0:00:09]} 29. g4 {[%clk 0:00:04]}  Rg7 {[%clk 0:00:10]} 30. Bf2 {[%clk 0:00:02]}  Rd7 {[%clk 0:00:09]} 31. Ke2 {[%clk 0:00:03]}  Rxd2+ {[%clk 0:00:09]} 32. Kxd2 {[%clk 0:00:04]}  Nd6 {[%clk 0:00:09]} 33. h4 {[%clk 0:00:03]}  e4 {[%clk 0:00:08]} 34. hxg5 {[%clk 0:00:03]}  fxg5 {[%clk 0:00:08]} 35. Ke3 {[%clk 0:00:02]}  exf3 {[%clk 0:00:08]} 36. Kxf3 {[%clk 0:00:03]}  Kd5 {[%clk 0:00:06]} 37. Be3 {[%clk 0:00:04]}  h6 {[%clk 0:00:06]} 38. Bd4 {[%clk 0:00:04]}  b5 {[%clk 0:00:05]} 39. Bg7 {[%clk 0:00:03]}  Nf7 {[%clk 0:00:06]} 40. Ke3 {[%clk 0:00:04]}  Ke6 {[%clk 0:00:05]} 41. Ke4 {[%clk 0:00:03]}  Nd6+ {[%clk 0:00:05]} 42. Kd4 {[%clk 0:00:02]}  h5 {[%clk 0:00:05]} 43. gxh5 {[%clk 0:00:02]}  Nf5+ {[%clk 0:00:05]} 44. Kc5 {[%clk 0:00:01]}  Nxg7 {[%clk 0:00:06]} 45. h6 {[%clk 0:00:02]}  Kf7 {[%clk 0:00:04]} 46. h7 {[%clk 0:00:02]}  Ne6+ {[%clk 0:00:04]} 47. Kd6 {[%clk 0:00:00]}  Kg7 {[%clk 0:00:05]} 0-1


[Site "https://www.chess.com"]

[Event "Titled Tuesday Blitz August 08 Late 2023"]
[White "Ward, Ieuan C"]
[Black "Sari, Yasin"]
[WhiteFideId "406627"]
[BlackFideId "6320902"]
[WhiteElo "2255"]
[BlackElo "2377"]
[Result "0-1"]
[Round "5"]
[TimeControl "180+1"]
[Date "2023.08.08"]
[WhiteClock "0:00:14"]
[BlackClock "0:00:07"]
[Board "145"]

1. d4 {[%clk 0:03:00]}  Nf6 {[%clk 0:02:55]} 2. c4 {[%clk 0:02:59]}  g6 {[%clk 0:02:55]} 3. Nc3 {[%clk 0:02:59]}  Bg7 {[%clk 0:02:55]} 4. Nf3 {[%clk 0:02:59]}  O-O {[%clk 0:02:56]} 5. g3 {[%clk 0:03:00]}  c5 {[%clk 0:02:55]} 6. d5 {[%clk 0:02:59]}  e6 {[%clk 0:02:54]} 7. Bg2 {[%clk 0:02:59]}  exd5 {[%clk 0:02:54]} 8. cxd5 {[%clk 0:02:59]}  d6 {[%clk 0:02:55]} 9. O-O {[%clk 0:03:00]}  a6 {[%clk 0:02:49]} 10. a4 {[%clk 0:02:59]}  Re8 {[%clk 0:02:49]} 11. Re1 {[%clk 0:02:57]}  Nbd7 {[%clk 0:02:43]} 12. e4 {[%clk 0:02:55]}  Rb8 {[%clk 0:02:29]} 13. a5 {[%clk 0:02:54]}  b5 {[%clk 0:02:27]} 14. axb6 {[%clk 0:02:55]}  Rxb6 {[%clk 0:02:27]} 15. Qc2 {[%clk 0:02:51]}  Nh5 {[%clk 0:01:57]} 16. Bg5 {[%clk 0:02:50]}  Qc7 {[%clk 0:01:37]} 17. Na4 {[%clk 0:02:43]}  Rb4 {[%clk 0:01:34]} 18. Bd2 {[%clk 0:02:41]}  Rb8 {[%clk 0:01:19]} 19. Bc3 {[%clk 0:02:41]}  Ne5 {[%clk 0:01:15]} 20. Nxe5 {[%clk 0:02:40]}  Bxe5 {[%clk 0:01:15]} 21. Bxe5 {[%clk 0:02:35]}  Rxe5 {[%clk 0:01:16]} 22. f4 {[%clk 0:02:30]}  Re7 {[%clk 0:01:09]} 23. Rad1 {[%clk 0:02:27]}  Qa5 {[%clk 0:00:55]} 24. e5 {[%clk 0:02:15]}  Bf5 {[%clk 0:00:52]} 25. Be4 {[%clk 0:02:03]}  Bg4 {[%clk 0:00:49]} 26. Ra1 {[%clk 0:01:28]}  dxe5 {[%clk 0:00:43]} 27. Qxc5 {[%clk 0:00:57]}  Qxc5+ {[%clk 0:00:30]} 28. Nxc5 {[%clk 0:00:58]}  exf4 {[%clk 0:00:30]} 29. d6 {[%clk 0:00:58]}  Ra7 {[%clk 0:00:23]} 30. Rxa6 {[%clk 0:00:49]}  Rxa6 {[%clk 0:00:21]} 31. Nxa6 {[%clk 0:00:50]}  Rxb2 {[%clk 0:00:21]} 32. Nc5 {[%clk 0:00:33]}  fxg3 {[%clk 0:00:20]} 33. hxg3 {[%clk 0:00:33]}  Nxg3 {[%clk 0:00:18]} 34. d7 {[%clk 0:00:31]}  Rd2 {[%clk 0:00:15]} 35. Re3 {[%clk 0:00:17]}  Nxe4 {[%clk 0:00:09]} 36. Nxe4 {[%clk 0:00:18]}  Rd1+ {[%clk 0:00:09]} 37. Kh2 {[%clk 0:00:17]}  Bxd7 {[%clk 0:00:10]} 38. Nf6+ {[%clk 0:00:09]}  Kg7 {[%clk 0:00:10]} 39. Ne4 {[%clk 0:00:09]}  Bf5 {[%clk 0:00:08]} 40. Ng5 {[%clk 0:00:07]}  Rd2+ {[%clk 0:00:08]} 41. Kg3 {[%clk 0:00:06]}  Rd3 {[%clk 0:00:08]} 42. Rxd3 {[%clk 0:00:06]}  Bxd3 {[%clk 0:00:09]} 43. Kf4 {[%clk 0:00:07]}  h6 {[%clk 0:00:08]} 44. Nf3 {[%clk 0:00:07]}  f6 {[%clk 0:00:08]} 45. Nd4 {[%clk 0:00:07]}  g5+ {[%clk 0:00:07]} 46. Ke3 {[%clk 0:00:08]}  Bg6 {[%clk 0:00:07]} 47. Ne6+ {[%clk 0:00:08]}  Kf7 {[%clk 0:00:07]} 48. Nd4 {[%clk 0:00:09]}  h5 {[%clk 0:00:07]} 49. Kf2 {[%clk 0:00:10]}  f5 {[%clk 0:00:07]} 50. Kg2 {[%clk 0:00:11]}  Kf6 {[%clk 0:00:07]} 51. Kh2 {[%clk 0:00:12]}  h4 {[%clk 0:00:07]} 52. Nc2 {[%clk 0:00:12]}  g4 {[%clk 0:00:07]} 53. Ne1 {[%clk 0:00:13]}  Kg5 {[%clk 0:00:07]} 54. Nd3 {[%clk 0:00:14]}  f4 {[%clk 0:00:07]} 55. Ne5 {[%clk 0:00:15]}  Bf5 {[%clk 0:00:07]} 56. Nc4 {[%clk 0:00:15]}  g3+ {[%clk 0:00:07]} 57. Kg2 {[%clk 0:00:14]}  h3+ {[%clk 0:00:07]} 58. Kf3 {[%clk 0:00:15]}  Bg4+ {[%clk 0:00:07]} 59. Ke4 {[%clk 0:00:14]}  h2 {[%clk 0:00:07]} 60. Ne5 {[%clk 0:00:14]}  h1=Q+ {[%clk 0:00:07]} 0-1


[Site "https://www.chess.com"]

[Event "Titled Tuesday Blitz August 08 Late 2023"]
[White "Eggleston, Thomas A"]
[Black "Vaglio Munoz, Jaime"]
[WhiteFideId "412139"]
[BlackFideId "6500145"]
[WhiteElo "2374"]
[BlackElo "2240"]
[Result "1-0"]
[Round "5"]
[TimeControl "180+1"]
[Date "2023.08.08"]
[WhiteClock "0:00:03"]
[BlackClock "0:00:00"]
[Board "146"]

1. e4 {[%clk 0:03:00]}  c5 {[%clk 0:02:59]} 2. Nf3 {[%clk 0:03:00]}  Qa5 {[%clk 0:02:59]} 3. c3 {[%clk 0:02:59]}  Nc6 {[%clk 0:02:58]} 4. Be2 {[%clk 0:02:58]}  Nf6 {[%clk 0:02:58]} 5. d3 {[%clk 0:02:52]}  d5 {[%clk 0:02:55]} 6. Nbd2 {[%clk 0:02:49]}  Bg4 {[%clk 0:02:51]} 7. O-O {[%clk 0:02:27]}  dxe4 {[%clk 0:02:39]} 8. dxe4 {[%clk 0:02:27]}  Rd8 {[%clk 0:02:31]} 9. Qc2 {[%clk 0:02:26]}  e5 {[%clk 0:02:25]} 10. Nc4 {[%clk 0:02:20]}  Qc7 {[%clk 0:02:23]} 11. Ne3 {[%clk 0:02:18]}  Be7 {[%clk 0:02:02]} 12. h3 {[%clk 0:02:10]}  Bxf3 {[%clk 0:01:52]} 13. Bxf3 {[%clk 0:02:10]}  O-O {[%clk 0:01:52]} 14. Nd5 {[%clk 0:02:09]}  Nxd5 {[%clk 0:01:48]} 15. exd5 {[%clk 0:02:09]}  Nb8 {[%clk 0:01:47]} 16. c4 {[%clk 0:01:50]}  f5 {[%clk 0:01:46]} 17. g3 {[%clk 0:01:46]}  Bd6 {[%clk 0:01:46]} 18. Bg2 {[%clk 0:01:46]}  Nd7 {[%clk 0:01:45]} 19. f4 {[%clk 0:01:44]}  e4 {[%clk 0:01:40]} 20. Be3 {[%clk 0:01:43]}  a6 {[%clk 0:01:39]} 21. a4 {[%clk 0:01:38]}  Rb8 {[%clk 0:01:34]} 22. a5 {[%clk 0:01:29]}  b6 {[%clk 0:01:25]} 23. Ra2 {[%clk 0:01:15]}  b5 {[%clk 0:01:19]} 24. b3 {[%clk 0:01:10]}  bxc4 {[%clk 0:01:14]} 25. bxc4 {[%clk 0:01:10]}  Rb4 {[%clk 0:01:13]} 26. Bd2 {[%clk 0:01:07]}  Rb7 {[%clk 0:01:12]} 27. Rb1 {[%clk 0:00:58]}  Rfb8 {[%clk 0:01:11]} 28. Rab2 {[%clk 0:00:56]}  Nf6 {[%clk 0:01:04]} 29. Bc3 {[%clk 0:00:49]}  Kf7 {[%clk 0:01:01]} 30. Bxf6 {[%clk 0:00:43]}  Kxf6 {[%clk 0:01:00]} 31. Qc3+ {[%clk 0:00:34]}  Kf7 {[%clk 0:01:00]} 32. h4 {[%clk 0:00:21]}  Rb4 {[%clk 0:00:59]} 33. Rxb4 {[%clk 0:00:20]}  cxb4 {[%clk 0:00:59]} 34. Qa1 {[%clk 0:00:17]}  Qxc4 {[%clk 0:00:57]} 35. Rc1 {[%clk 0:00:16]}  Qd3 {[%clk 0:00:40]} 36. Kh2 {[%clk 0:00:16]}  b3 {[%clk 0:00:40]} 37. Qb2 {[%clk 0:00:16]}  Qxd5 {[%clk 0:00:29]} 38. Bf1 {[%clk 0:00:15]}  Kg6 {[%clk 0:00:17]} 39. Bc4 {[%clk 0:00:15]}  Qb7 {[%clk 0:00:13]} 40. h5+ {[%clk 0:00:15]}  Kh6 {[%clk 0:00:12]} 41. Qd4 {[%clk 0:00:14]}  Qe7 {[%clk 0:00:11]} 42. Rd1 {[%clk 0:00:13]}  b2 {[%clk 0:00:10]} 43. Qxd6+ {[%clk 0:00:12]}  Qxd6 {[%clk 0:00:09]} 44. Rxd6+ {[%clk 0:00:12]}  g6 {[%clk 0:00:09]} 45. Ba2 {[%clk 0:00:10]}  b1=Q {[%clk 0:00:04]} 46. Bxb1 {[%clk 0:00:10]}  Rxb1 {[%clk 0:00:04]} 47. hxg6 {[%clk 0:00:10]}  hxg6 {[%clk 0:00:04]} 48. Rxa6 {[%clk 0:00:10]}  Kh5 {[%clk 0:00:04]} 49. Re6 {[%clk 0:00:10]}  Ra1 {[%clk 0:00:03]} 50. a6 {[%clk 0:00:10]}  Kg4 {[%clk 0:00:03]} 51. Rxg6+ {[%clk 0:00:08]}  Kf3 {[%clk 0:00:03]} 52. Rb6 {[%clk 0:00:06]}  e3 {[%clk 0:00:03]} 53. Rb3 {[%clk 0:00:04]}  Rxa6 {[%clk 0:00:02]} 54. Kg1 {[%clk 0:00:03]}  Ra1+ {[%clk 0:00:01]} 55. Kh2 {[%clk 0:00:03]}  Kf2 {[%clk 0:00:01]} 56. Kh3 {[%clk 0:00:03]}  e2 {[%clk 0:00:00]} 57. Rb2 {[%clk 0:00:03]} 1-0


[Site "https://www.chess.com"]

[Event "Titled Tuesday Blitz August 08 Late 2023"]
[White "Korpics, Zsolt"]
[Black "Biliy, Vadim"]
[WhiteFideId "705241"]
[BlackFideId "14114127"]
[WhiteElo "2372"]
[BlackElo "2228"]
[Result "1-0"]
[Round "5"]
[TimeControl "180+1"]
[Date "2023.08.08"]
[WhiteClock "0:01:52"]
[BlackClock "0:01:35"]
[Board "148"]

1. e4 {[%clk 0:03:00]}  d6 {[%clk 0:02:59]} 2. d4 {[%clk 0:02:58]}  Nf6 {[%clk 0:02:58]} 3. Nc3 {[%clk 0:02:58]}  g6 {[%clk 0:02:58]} 4. Be2 {[%clk 0:02:57]}  Bg7 {[%clk 0:02:58]} 5. h4 {[%clk 0:02:57]}  h5 {[%clk 0:02:54]} 6. Nf3 {[%clk 0:02:53]}  Bg4 {[%clk 0:02:50]} 7. Ng5 {[%clk 0:02:52]}  Bxe2 {[%clk 0:02:48]} 8. Qxe2 {[%clk 0:02:53]}  c6 {[%clk 0:02:44]} 9. e5 {[%clk 0:02:39]}  Nd5 {[%clk 0:02:44]} 10. Nxd5 {[%clk 0:02:27]}  cxd5 {[%clk 0:02:42]} 11. e6 {[%clk 0:02:27]}  f5 {[%clk 0:02:17]} 12. Nf7 {[%clk 0:02:20]}  Qa5+ {[%clk 0:02:15]} 13. Bd2 {[%clk 0:02:19]}  Qb6 {[%clk 0:02:15]} 14. Nxh8 {[%clk 0:02:00]}  Bxh8 {[%clk 0:02:14]} 15. c3 {[%clk 0:01:59]}  Qxb2 {[%clk 0:02:11]} 16. O-O {[%clk 0:01:59]}  Qa3 {[%clk 0:01:35]} 17. Qb5+ {[%clk 0:01:52]} 1-0


[Site "https://www.chess.com"]